bitfinex-derivatives/quotes_SOLF0:USTF0_20260314
["timestamp","ask_amount","ask_price","bid_price","bid_amount"]
[1773489806712,6.40341923,86.999,86.948,10.349]
[1773489808415,6.3889645,86.989,86.948,10.349]
[1773489809407,6.3889645,86.989,86.94,10.35]
[1773489809905,6.38707359,86.979,86.932,10.351]
[1773489811608,6.41925669,86.969,86.932,10.351]
[1773489814011,6.41823679,87.003,86.94,3.12925423]
[1773489814714,6.41757196,87.029,86.97,3.12925423]
[1773489815113,8.99151115,87.028,86.97,3.12925423]
[1773489815313,8.99151115,87.027,86.97,3.12925423]
[1773489815615,3.12925423,87.02,86.97,3.12925423]
[1773489816111,9.65350107,87.02,86.968,10.347]
[1773489818112,6.56075773,87.019,86.968,10.347]
[1773489820118,6.5598105,87.027,86.981,10.345]
[1773489821219,6.5598105,87.027,86.97,13.47525423]
[1773489821414,6.5598105,87.027,86.97,10.346]
[1773489822111,3.12925423,87.02,86.97,10.346]
[1773489823715,6.5598105,87.027,86.97,10.346]
[1773489826018,6.5598105,87.027,86.97,13.47525423]
[1773489826420,6.5598105,87.027,86.98,3.12925423]
[1773489826623,36.2,87.048,86.96,3.12925423]
[1773489826624,6.56211149,87.019,86.96,3.12925423]
[1773489827727,6.56211149,87.019,86.966,10.347]
[1773489830520,6.56211149,87.019,86.901,62.91439666]
[1773489830521,6.56532728,87.016,86.957,10.348]
[1773489830718,6.56532728,87.009,86.957,10.348]
[1773489830922,6.57541427,86.999,86.94,3.12025332]
[1773489831228,6.57541427,86.999,86.956,10.348]
[1773489832923,6.57541427,86.999,86.946,10.349]
[1773489833424,3.12025332,86.98,86.926,10.352]
[1773489833726,20.68,87.026,86.9,3.12025332]
[1773489833727,6.59628366,86.959,86.9,3.12025332]
[1773489834324,6.5966372,86.939,86.896,10.355]
[1773489835527,6.5966372,86.939,86.886,10.356]
[1773489837031,3.12025332,86.93,86.886,10.356]
[1773489837725,6.5966372,86.939,86.895,10.355]
[1773489842734,6.5966372,86.939,86.904,10.354]
[1773489846434,6.56356559,86.95,86.914,10.353]
[1773489857743,3.80032098,86.939,86.881,3.93143095]
[1773489858044,3.80032098,86.939,86.891,3.93143095]
[1773489858543,3.80032098,86.939,86.897,14.28643095]
[1773489859839,3.80032098,86.939,86.898,3.93143095]
[1773489866948,3.80032098,86.939,86.9,3.97542955]
[1773489868645,3.80032098,86.939,86.902,3.97542955]
[1773489868947,3.90381577,86.963,86.911,3.97542955]
[1773489869147,3.90381577,86.959,86.911,3.97542955]
[1773489869343,3.90381577,86.959,86.912,10.353]
[1773489869544,3.90381577,86.949,86.891,3.97542955]
[1773489870042,3.90381577,86.949,86.904,10.354]
[1773489870949,3.90381577,86.949,86.891,3.97542955]
[1773489870950,3.90381577,86.939,86.896,10.355]
[1773489871244,3.90381577,86.929,86.881,3.97542955]
[1773489873649,3.90381577,86.929,86.882,10.357]
[1773489873851,3.90381577,86.929,86.881,3.97542955]
[1773489875543,3.90381577,86.929,86.889,10.356]
[1773489877450,3.90381577,86.94,86.899,3.97542955]
[1773489877649,3.90381577,86.94,86.901,3.97542955]
[1773489878549,3.90381577,86.94,86.903,10.354]
[1773489880548,3.90381577,86.94,86.906,10.354]
[1773489883355,3.90381577,86.94,86.907,3.97542955]
[1773489887961,3.90381577,86.94,86.898,10.355]
[1773489888453,3.90381577,86.94,86.896,3.97542955]
[1773489888454,3.90381577,86.94,86.899,3.97542955]
[1773489889659,3.90381577,86.94,86.902,10.354]
[1773489891763,3.90381577,86.94,86.905,4.02914591]
[1773489896263,4.04461267,86.938,86.881,4.02914591]
[1773489897665,4.04461267,86.938,86.88,3.12566824]
[1773489897666,4.04461267,86.938,86.896,10.355]
[1773489898367,4.04461267,86.936,86.896,10.355]
[1773489898868,4.04461267,86.936,86.897,4.02914591]
[1773489900069,4.04461267,86.936,86.899,4.02914591]
[1773489901372,4.04461267,86.936,86.809,179.0]
[1773489901373,4.04461267,86.963,86.92,3.12566824]
[1773489901664,21.50367202,86.993,86.878,20.715]
[1773489901665,4.04461267,86.976,86.931,4.02914591]
[1773489901865,9.19417557,86.975,86.934,4.02914591]
[1773489902166,4.04461267,86.976,86.941,4.02914591]
[1773489902371,9.1883189,86.975,86.941,4.02914591]
[1773489902568,9.1883189,86.974,86.941,4.02914591]
[1773489902867,4.04461267,86.987,86.941,4.02914591]
[1773489903068,9.18840781,86.986,86.941,4.02914591]
[1773489903268,9.18840781,86.985,86.941,4.02914591]
[1773489903569,9.18840781,86.984,86.941,4.02914591]
[1773489903768,9.18840781,86.983,86.941,4.02914591]
[1773489904070,9.18840781,86.982,86.941,4.02914591]
[1773489904270,9.18840781,86.981,86.941,4.02914591]
[1773489904572,4.04461267,86.987,86.941,4.02914591]
[1773489904869,13.22406419,86.986,86.941,4.02914591]
[1773489905174,4.04461267,86.984,86.941,4.02914591]
[1773489907574,4.04461267,86.979,86.935,10.351]
[1773489907979,4.04461267,86.979,86.935,14.38014591]
[1773489909575,4.04461267,86.979,86.936,4.02914591]
[1773489910982,3.12566824,86.98,86.924,10.352]
[1773489910983,4.04461267,86.969,86.924,14.38114591]
[1773489912876,4.04461267,86.969,86.924,4.02914591]
[1773489913271,3.12566824,86.96,86.924,4.02914591]
[1773489914277,4.04461267,86.969,86.924,4.02914591]
[1773489915182,4.04461267,86.969,86.927,4.02914591]
[1773489915776,4.04461267,86.969,86.926,10.351]
[1773489915777,3.12566824,86.98,86.93,4.02914591]
[1773489915979,7.17028091,86.98,86.93,4.02914591]
[1773489916179,4.04461267,86.979,86.93,4.02914591]
[1773489918376,4.04461267,86.976,86.93,4.02914591]
[1773489918583,4.04461267,86.969,86.93,4.02914591]
[1773489921987,3.12566824,86.96,86.93,4.02914591]
[1773489922283,3.12566824,86.96,86.914,3.79150457]
[1773489922583,3.77357807,86.966,86.914,3.79150457]
[1773489923580,3.77357807,86.966,86.917,3.79150457]
[1773489924782,3.77357807,86.966,86.92,3.79150457]
[1773489925387,3.77357807,86.966,86.922,3.79150457]
[1773489926581,3.77357807,86.966,86.925,3.79150457]
[1773489939997,10.345,86.978,86.929,3.79150457]
[1773489940190,3.77357807,86.976,86.931,3.79150457]
[1773489941700,3.77357807,86.976,86.94,3.79150457]
[1773489946503,3.77357807,86.992,86.943,3.79150457]
[1773489946703,3.77357807,86.99,86.943,3.79150457]
[1773489946899,3.77357807,86.988,86.943,3.79150457]
[1773489947200,9.10667569,86.987,86.943,3.79150457]
[1773489947501,9.10667569,86.986,86.947,10.349]
[1773489947805,9.10667569,86.985,86.948,3.79150457]
[1773489948002,3.77357807,86.986,86.948,3.79150457]
[1773489948201,9.10513625,86.985,86.948,3.79150457]
[1773489948402,3.77357807,86.986,86.948,3.79150457]
[1773489948603,9.10381603,86.985,86.95,3.79150457]
[1773489948804,9.10381603,86.984,86.95,3.79150457]
[1773489949004,3.77357807,86.986,86.95,3.79150457]
[1773489949304,9.10264883,86.985,86.95,3.79150457]
[1773489949504,3.77357807,86.986,86.95,3.79150457]
[1773489949803,9.10264883,86.985,86.95,3.79150457]
[1773489950004,3.77357807,86.986,86.95,3.79150457]
[1773489950202,9.10264679,86.985,86.95,3.79150457]
[1773489950400,3.77357807,86.986,86.95,3.79150457]
[1773489950604,9.10165822,86.985,86.95,3.79150457]
[1773489950904,3.77357807,86.986,86.95,3.79150457]
[1773489953108,3.86620803,86.984,86.95,3.79150457]
[1773489963414,3.86620803,86.967,86.923,4.02600883]
[1773489964619,3.86620803,86.967,86.925,4.02600883]
[1773489965314,3.86620803,86.994,86.941,4.02600883]
[1773489965518,3.86620803,86.992,86.941,4.02600883]
[1773489967321,3.86620803,86.992,86.943,4.02600883]
[1773489970816,3.86620803,86.992,86.921,36.2]
[1773489970817,3.86620803,87.007,86.96,3.12206749]
[1773489971119,3.86620803,87.017,86.971,4.02600883]
[1773489971518,3.86620803,87.015,86.964,10.347]
[1773489971720,3.86620803,86.999,86.949,4.02600883]
[1773489972525,14.20920803,86.999,86.949,4.02600883]
[1773489972726,3.86620803,86.998,86.949,4.02600883]
[1773489975125,3.86620803,86.989,86.949,4.02600883]
[1773489975420,3.86620803,86.989,86.904,34.53]
[1773489975421,3.86620803,86.979,86.932,4.02600883]
[1773489985739,3.86620803,86.979,86.934,3.76176793]
[1773489988742,3.86620803,86.979,86.938,3.76176793]
[1773489989543,3.86620803,86.979,86.942,3.76176793]
[1773489990543,3.86620803,86.979,86.946,3.76176793]
[1773489993245,3.12206749,86.99,86.946,3.76176793]
[1773489993445,4.04251935,86.993,86.951,3.76176793]
[1773489994647,4.04251935,86.993,86.954,3.76176793]
[1773489995544,4.04251935,86.993,86.956,3.76176793]
[1773489996838,4.04251935,87.007,86.958,3.76176793]
[1773489997038,4.04251935,87.005,86.958,3.76176793]
[1773489998550,4.04251935,87.003,86.961,3.76176793]
[1773489998748,4.04251935,87.001,86.961,3.76176793]
[1773489998949,9.23439061,87.0,86.961,3.76176793]
[1773489999150,4.04251935,87.001,86.961,3.76176793]
[1773490003858,4.04251935,87.011,86.963,3.76176793]
[1773490005556,4.04251935,87.011,86.973,3.76176793]
[1773490008961,3.12206749,87.02,86.973,3.76176793]
[1773490009263,12.95947129,87.019,86.973,3.76176793]
[1773490009563,9.13692879,87.018,86.973,3.76176793]
[1773490009757,3.8225425,87.019,86.973,3.76176793]
[1773490012457,3.8225425,87.019,86.944,36.2]
[1773490012458,4.03080902,87.025,86.981,3.77263542]
[1773490012662,4.03080902,87.018,86.961,3.77263542]
[1773490013165,4.03080902,87.016,86.968,14.11963542]
[1773490013964,4.03080902,87.016,86.969,3.77263542]
[1773490014768,4.03080902,87.014,86.969,3.77263542]
[1773490016565,4.03080902,87.011,86.969,3.77263542]
[1773490020271,4.03080902,87.011,86.971,3.77263542]
[1773490020870,10.34,87.021,86.971,3.77263542]
[1773490021669,4.03080902,87.042,87.001,3.77263542]
[1773490022267,4.03080902,87.042,87.002,3.77263542]
[1773490022571,4.03080902,87.042,86.981,3.77263542]
[1773490022770,4.03080902,87.042,86.991,3.77263542]
[1773490023272,4.03080902,87.039,86.994,3.77263542]
[1773490024575,4.03080902,87.039,86.993,10.344]
[1773490024576,4.03080902,87.029,86.983,10.345]
[1773490025075,4.03080902,87.029,86.983,14.11763542]
[1773490025676,4.03080902,87.028,86.983,14.11763542]
[1773490026270,4.03080902,87.028,86.984,3.77263542]
[1773490026682,4.03080902,87.026,86.984,3.77263542]
[1773490027674,4.03080902,87.024,86.984,3.77263542]
[1773490028667,4.03080902,87.022,86.984,3.77263542]
[1773490034374,4.03080902,87.022,86.974,14.11863542]
[1773490034579,30.50938873,87.068,86.966,10.347]
[1773490034580,4.03080902,87.019,86.966,10.347]
[1773490034783,4.03080902,87.009,86.963,3.77263542]
[1773490035078,4.03080902,86.999,86.963,3.77263542]
[1773490035279,4.03080902,86.999,86.94,3.12020367]
[1773490035280,4.03080902,86.999,86.953,3.77263542]
[1773490035879,36.18,87.047,86.953,3.77263542]
[1773490035880,4.03080902,86.989,86.953,3.77263542]
[1773490059096,3.12020367,87.0,86.953,3.77263542]
[1773490059297,3.94540115,86.999,86.953,3.77263542]
[1773490060499,3.94540115,86.999,86.954,10.348]
[1773490060797,3.94540115,86.999,86.954,14.08937427]
[1773490062299,3.94540115,86.999,86.955,3.74137427]
[1773490076110,3.67128369,86.996,86.955,3.74137427]
[1773490076511,3.67128369,86.996,86.946,10.349]
[1773490076714,3.67128369,86.989,86.945,3.68271945]
[1773490077010,3.67128369,86.989,86.881,11.5]
[1773490077011,3.67128369,86.979,86.923,3.68271945]
[1773490078218,3.67128369,86.979,86.931,3.68271945]
[1773490082920,3.67128369,86.977,86.931,3.68271945]
[1773490084617,3.67128369,86.975,86.931,3.68271945]
[1773490087721,3.67128369,86.969,86.931,3.68271945]
[1773490096336,3.67128369,86.985,86.931,3.68271945]
[1773490096936,3.67128369,86.983,86.933,3.68271945]
[1773490103738,3.93257899,86.98,86.933,3.68271945]
[1773490103932,3.93257899,86.979,86.933,3.68271945]
[1773490105537,3.93257899,86.976,86.933,3.68271945]
[1773490118147,3.93257899,86.986,86.933,3.68271945]
[1773490118342,3.93257899,86.984,86.933,3.68271945]
[1773490118646,3.93257899,86.984,86.941,4.0159891]
[1773490119645,3.93257899,86.984,86.942,4.0159891]
[1773490121246,9.10622795,86.983,86.943,10.35]
[1773490121447,3.93257899,86.984,86.944,4.0159891]
[1773490121753,13.03880694,86.983,86.944,4.0159891]
[1773490121950,3.93257899,86.983,86.944,4.0159891]
[1773490128554,3.88104039,87.002,86.946,3.82605759]
[1773490128743,9.13022955,87.001,86.946,3.82605759]
[1773490129051,3.88104039,86.999,86.946,3.82605759]
[1773490129247,3.88104039,86.997,86.946,3.82605759]
[1773490129443,3.88104039,86.995,86.946,3.82605759]
[1773490129647,13.01126994,86.994,86.952,3.82605759]
[1773490129844,3.88104039,86.994,86.952,3.82605759]
[1773490130556,3.88104039,86.994,86.954,3.82605759]
[1773490141868,3.76582717,87.004,86.957,3.70433506]
[1773490142064,9.12054301,87.003,86.957,3.70433506]
[1773490142268,9.12054301,87.002,86.957,3.70433506]
[1773490142469,9.12054301,87.001,86.957,3.70433506]
[1773490142668,9.12054301,87.0,86.957,3.70433506]
[1773490142871,3.76582717,87.004,86.957,3.70433506]
[1773490143071,12.88562261,87.003,86.957,3.70433506]
[1773490143270,12.88562261,87.002,86.957,3.70433506]
[1773490143472,9.11979544,87.001,86.957,3.70433506]
[1773490143672,9.11979544,87.0,86.959,3.70433506]
[1773490143870,3.76582717,87.002,86.959,3.70433506]
[1773490144173,9.11916079,87.001,86.959,3.70433506]
[1773490144473,9.11916079,87.0,86.959,3.70433506]
[1773490144773,3.76582717,87.002,86.961,3.70433506]
[1773490146668,3.76582717,87.012,86.971,3.70433506]
[1773490146873,3.76582717,87.034,86.971,3.70433506]
[1773490147070,9.11293013,87.033,86.971,3.70433506]
[1773490147265,3.76582717,87.031,86.971,3.70433506]
[1773490147466,3.76582717,87.029,86.971,3.70433506]
[1773490148172,36.2,87.055,86.972,3.70433506]
[1773490148173,3.12189743,87.02,86.972,3.70433506]
[1773490148372,3.76582717,87.019,86.972,3.70433506]
[1773490149273,3.76582717,87.009,86.954,3.70433506]
[1773490150378,3.76582717,86.999,86.943,3.70433506]
[1773490151678,3.76582717,86.997,86.943,3.70433506]
[1773490152680,3.76582717,86.994,86.943,3.70433506]
[1773490155582,3.76582717,86.979,86.943,3.70433506]
[1773490173196,3.78468692,86.978,86.943,3.70433506]
[1773490175298,10.344,86.988,86.943,3.70433506]
[1773490175500,3.94053698,86.987,86.943,3.70433506]
[1773490195218,3.77297682,86.985,86.943,3.70433506]
[1773490197821,3.77297682,86.982,86.943,3.70433506]
[1773490199014,160.78,87.062,86.931,36.2]
[1773490199015,3.77297682,86.969,86.931,36.2]
[1773490199219,3.77297682,86.967,86.931,36.2]
[1773490200219,3.77297682,86.967,86.931,39.94781081]
[1773490201017,3.77297682,86.959,86.905,3.74781081]
[1773490201216,3.77297682,86.949,86.905,3.74781081]
[1773490203916,3.77297682,86.948,86.902,36.2]
[1773490204115,3.77297682,86.946,86.902,36.2]
[1773490208126,3.77297682,86.946,86.903,3.74781081]
[1773490212023,3.77297682,86.945,86.903,3.74781081]
[1773490212920,3.77297682,86.938,86.891,3.74781081]
[1773490213125,3.77297682,86.938,86.883,10.357]
[1773490214634,3.77297682,86.931,86.883,14.10481081]
[1773490214932,3.77297682,86.931,86.884,3.74781081]
[1773490216229,3.77297682,86.929,86.884,3.74781081]
[1773490217733,3.77297682,86.926,86.884,3.74781081]
[1773490219335,10.352,86.92,86.884,3.74781081]
[1773490221429,3.71750778,86.919,86.884,3.74781081]
[1773490222430,3.71750778,86.917,86.875,36.22]
[1773490222631,3.71750778,86.917,86.873,3.93055935]
[1773490223532,3.71750778,86.915,86.873,3.93055935]
[1773490225340,3.71750778,86.915,86.881,3.93055935]
[1773490251049,3.96905289,86.947,86.893,3.90085965]
[1773490251346,3.93498037,86.945,86.901,3.90085965]
[1773490251550,3.93498037,86.943,86.901,3.90085965]
[1773490251745,3.93498037,86.941,86.901,3.90085965]
[1773490251946,3.1226326,86.96,86.901,3.90085965]
[1773490251947,13.13453671,86.94,86.901,3.90085965]
[1773490252148,3.93498037,86.935,86.88,3.1226326]
[1773490252453,3.93498037,86.933,86.881,3.83922107]
[1773490252647,3.93498037,86.931,86.881,3.83922107]
[1773490252848,3.93498037,86.929,86.881,3.83922107]
[1773490253047,3.93498037,86.927,86.881,3.83922107]
[1773490253254,3.93498037,86.925,86.881,3.83922107]
[1773490253454,3.93498037,86.923,86.881,3.83922107]
[1773490253752,3.1226326,86.93,86.881,3.83922107]
[1773490253753,3.93498037,86.921,86.881,3.83922107]
[1773490253952,3.93498037,86.919,86.881,3.83922107]
[1773490262056,9.20914261,86.918,86.881,3.83922107]
[1773490262254,3.93498037,86.919,86.881,3.83922107]
[1773490262554,3.93498037,86.917,86.881,3.83922107]
[1773490264153,3.93498037,86.917,86.861,10.359]
[1773490264359,3.93498037,86.906,86.864,3.83922107]
[1773490264562,13.14426324,86.905,86.864,3.83922107]
[1773490264760,3.93498037,86.905,86.864,3.83922107]
[1773490274867,3.93498037,86.901,86.864,3.83922107]
[1773490286180,3.94633348,86.889,86.837,4.05389376]
[1773490286373,3.94633348,86.889,86.838,4.05389376]
[1773490287381,3.94633348,86.889,86.841,4.05389376]
[1773490287680,3.94633348,86.889,86.851,4.05389376]
[1773490289079,3.12735645,86.91,86.85,3.12735645]
[1773490289080,3.94633348,86.909,86.853,4.05389376]
[1773490289379,3.94633348,86.907,86.853,4.05389376]
[1773490289575,3.94633348,86.905,86.861,4.05389376]
[1773490301585,10.354,86.909,86.861,4.05389376]
[1773490301791,10.354,86.905,86.861,4.05389376]
[1773490302183,3.94633348,86.904,86.861,4.05389376]
[1773490304293,3.94633348,86.902,86.861,4.05389376]
[1773490306195,3.94633348,86.9,86.861,4.05389376]
[1773490306394,3.94633348,86.898,86.861,4.05389376]
[1773490308191,9.29240617,86.897,86.861,4.05389376]
[1773490308395,3.94633348,86.898,86.861,4.05389376]
[1773490316396,3.71329464,86.891,86.846,36.22]
[1773490316601,3.71329464,86.889,86.847,3.99389565]
[1773490316800,3.71329464,86.889,86.851,3.99389565]
[1773490322300,21.450764,86.932,86.846,36.22]
[1773490322301,3.71329464,86.908,86.881,3.99389565]
[1773490324104,3.71329464,86.908,86.88,3.12833416]
[1773490324305,3.71329464,86.908,86.872,3.99389565]
[1773490327305,3.71329464,86.908,86.88,3.12833416]
[1773490330807,3.71329464,86.941,86.891,3.99389565]
[1773490331011,3.71329464,86.939,86.91,3.12833416]
[1773490331208,3.71329464,86.969,86.911,3.99389565]
[1773490331409,3.71329464,86.967,86.911,3.99389565]
[1773490331710,3.12833416,86.97,86.911,3.99389565]
[1773490331711,3.71329464,86.956,86.911,3.99389565]
[1773490331911,3.71329464,86.954,86.911,3.99389565]
[1773490332107,3.71329464,86.952,86.911,3.99389565]
[1773490332305,3.71329464,86.95,86.911,3.99389565]
[1773490333515,3.71329464,86.96,86.921,3.99389565]
[1773490339117,2.00009196,87.082,86.941,3.99389565]
[1773490339118,3.71329464,86.976,86.941,3.99389565]
[1773490343717,3.71329464,86.976,86.931,3.95079305]
[1773490346119,4.02557564,86.959,86.911,3.95079305]
[1773490346313,4.02557564,86.959,86.912,36.2]
[1773490346623,4.02557564,86.959,86.912,40.15079305]
[1773490346922,4.02557564,86.959,86.913,3.95079305]
[1773490352741,4.02557564,86.959,86.875,34.47]
[1773490352742,4.02557564,86.939,86.891,3.95079305]
[1773490352941,4.02557564,86.939,86.892,36.2]
[1773490353438,4.02557564,86.939,86.892,40.15079305]
[1773490353638,4.02557564,86.936,86.892,40.15079305]
[1773490354241,4.02557564,86.936,86.893,3.95079305]
[1773490361749,4.02557564,86.959,86.901,3.95079305]
[1773490362546,4.02557564,86.955,86.903,3.95079305]
[1773490365048,4.02557564,86.955,86.906,3.95079305]
[1773490367447,4.02557564,86.955,86.9,3.12833416]
[1773490367448,4.02557564,86.955,86.909,3.95079305]
[1773490369454,3.84925195,86.953,86.909,3.95079305]
[1773490369651,3.84925195,86.949,86.909,3.95079305]
[1773490377655,4.0554755,86.947,86.909,3.95079305]
[1773490391264,4.0554755,86.945,86.909,3.95079305]
[1773490396068,13.16108656,86.944,86.909,3.95079305]
[1773490396274,4.0554755,86.944,86.909,3.95079305]
[1773490397265,9.10912782,86.943,86.909,3.95079305]
[1773490397469,4.0554755,86.944,86.909,3.95079305]
[1773490397660,9.10917381,86.943,86.909,3.95079305]
[1773490397860,4.0554755,86.944,86.909,3.95079305]
[1773490398067,9.10917424,86.943,86.909,3.95079305]
[1773490398270,4.0554755,86.944,86.909,3.95079305]
[1773490398471,9.10938031,86.943,86.909,3.95079305]
[1773490398769,4.0554755,86.944,86.909,3.95079305]
[1773490398970,9.10938031,86.943,86.909,3.95079305]
[1773490399171,4.0554755,86.944,86.909,3.95079305]
[1773490399371,9.10963182,86.943,86.909,3.95079305]
[1773490399670,4.0554755,86.944,86.909,3.95079305]
[1773490399870,9.10963132,86.943,86.909,3.95079305]
[1773490400072,4.0554755,86.944,86.909,3.95079305]
[1773490400275,9.10986236,86.943,86.909,3.95079305]
[1773490400467,10.66776306,86.969,86.912,3.7183142]
[1773490400774,13.16525742,86.968,86.921,3.7183142]
[1773490400972,4.0554755,86.966,86.921,3.7183142]
[1773490401169,4.0554755,86.965,86.921,3.7183142]
[1773490401772,4.0554755,86.965,86.922,4.03169306]
[1773490402364,3.79135529,86.961,86.922,4.03169306]
[1773490410478,3.79135529,86.957,86.922,4.03169306]
[1773490412075,3.79135529,86.957,86.907,4.03169306]
[1773490418281,3.79135529,86.954,86.907,4.03169306]
[1773490419683,3.79135529,86.952,86.907,4.03169306]
[1773490420280,3.79135529,86.948,86.907,4.03169306]
[1773490423393,3.79135529,86.945,86.907,4.03169306]
[1773490425097,3.79135529,86.942,86.907,4.03169306]
[1773490432801,3.81000137,86.952,86.909,3.85992442]
[1773490434700,3.81000137,86.952,86.916,14.21292442]
[1773490435198,3.81000137,86.963,86.923,3.85992442]
[1773490435405,3.81000137,86.974,86.923,3.85992442]
[1773490435703,9.11931648,86.973,86.923,3.85992442]
[1773490436003,3.81000137,86.974,86.923,3.85992442]
[1773490436202,9.11930367,86.973,86.923,3.85992442]
[1773490436403,3.81000137,86.974,86.923,3.85992442]
[1773490436604,9.11827203,86.973,86.931,3.85992442]
[1773490436800,3.81000137,86.974,86.931,3.85992442]
[1773490438603,3.81000137,86.974,86.934,3.85992442]
[1773490443010,3.81000137,86.984,86.936,3.85992442]
[1773490443308,3.81000137,86.982,86.936,3.85992442]
[1773490443508,3.81000137,86.98,86.936,3.85992442]
[1773490443708,3.81000137,86.978,86.936,3.85992442]
[1773490445302,3.81000137,86.976,86.936,3.85992442]
[1773490449117,3.81000137,86.976,86.937,3.85992442]
[1773490465724,3.81000137,86.976,86.939,3.92828689]
[1773490465923,3.88169944,86.997,86.951,3.92828689]
[1773490467728,3.88169944,86.997,86.952,3.92828689]
[1773490483344,3.12506288,86.98,86.942,3.92828689]
[1773490483645,3.12506288,86.96,86.933,3.92828689]
[1773490483848,7.00676232,86.96,86.933,3.92828689]
[1773490490260,3.8423168,86.959,86.922,4.04796709]
[1773490496361,4.05962626,86.975,86.932,4.02633121]
[1773490496568,4.05962626,86.985,86.941,4.02633121]
[1773490496867,4.05962626,86.985,86.943,4.02633121]
[1773490497560,4.05962626,86.985,86.946,4.02633121]
[1773490501467,4.05962626,86.979,86.935,4.02633121]
[1773490501869,4.05962626,86.979,86.925,4.02633121]
[1773490502668,4.05962626,86.969,86.925,4.02633121]
[1773490502870,4.05962626,86.959,86.911,4.02633121]
[1773490504575,4.05962626,86.959,86.913,4.02633121]
[1773490506080,4.05962626,86.959,86.917,4.02633121]
[1773490508880,4.05962626,86.959,86.907,14.38033121]
[1773490509077,4.05962626,86.959,86.908,4.02633121]
[1773490509379,4.05962626,86.949,86.908,4.02633121]
[1773490547423,3.81542578,86.946,86.908,4.02633121]
[1773490551130,3.91936061,86.944,86.908,4.02633121]
[1773490553229,3.75755849,86.942,86.908,4.02633121]
[1773490557130,9.1091846,86.941,86.908,4.02633121]
[1773490557328,3.75755849,86.942,86.908,4.02633121]
[1773490557529,9.1091846,86.941,86.908,4.02633121]
[1773490557729,3.75755849,86.942,86.908,4.02633121]
[1773490557928,9.1091846,86.941,86.908,4.02633121]
[1773490558129,3.75755849,86.942,86.908,4.02633121]
[1773490558430,9.10917372,86.941,86.908,4.02633121]
[1773490558629,3.75755849,86.942,86.908,4.02633121]
[1773490561934,3.75755849,86.959,86.911,3.66428459]
[1773490562134,9.1076211,86.958,86.913,3.66428459]
[1773490562429,3.75755849,86.956,86.913,3.66428459]
[1773490562634,3.75755849,86.954,86.913,3.66428459]
[1773490563534,3.75755849,86.954,86.915,3.66428459]
[1773490565034,3.75755849,86.949,86.915,3.66428459]
[1773490572941,3.75755849,86.946,86.912,36.22]
[1773490573546,3.75755849,86.946,86.904,3.66428459]
[1773490577942,3.75755849,86.946,86.905,3.66428459]
[1773490578446,3.75755849,86.946,86.911,3.66428459]
[1773490578642,3.75755849,86.962,86.921,3.66428459]
[1773490579535,3.75755849,86.962,86.925,3.66428459]
[1773490581149,3.75755849,86.962,86.927,3.66428459]
[1773490603966,4.00233758,86.983,86.931,3.82834441]
[1773490604164,13.09999505,86.982,86.931,3.82834441]
[1773490604362,13.09999505,86.981,86.931,3.82834441]
[1773490604562,9.09765747,86.98,86.931,3.82834441]
[1773490604763,4.00233758,86.981,86.931,3.82834441]
[1773490604962,4.00233758,86.979,86.931,3.82834441]
[1773490605659,4.00233758,86.979,86.936,3.82834441]
[1773490607565,4.00233758,86.969,86.926,10.352]
[1773490608264,4.00233758,86.969,86.926,14.18034441]
[1773490608458,4.00233758,86.969,86.927,3.82834441]
[1773490610067,9.08859486,86.968,86.927,3.82834441]
[1773490610266,3.87715675,86.967,86.927,3.82834441]
[1773490618278,3.9709713,86.965,86.927,3.82834441]
[1773490620880,3.9709713,86.965,86.922,36.2]
[1773490620881,10.346,86.973,86.931,3.98620223]
[1773490623882,3.9709713,86.972,86.931,3.98620223]
[1773490624485,3.9709713,86.972,86.933,3.98620223]
[1773490625179,3.9709713,86.972,86.935,3.98620223]
[1773490639390,3.9709713,86.972,86.926,10.352]
[1773490639590,3.9709713,86.969,86.929,36.2]
[1773490646391,3.9709713,86.969,86.927,3.68288573]
[1773490646592,3.9709713,86.969,86.928,36.2]
[1773490648987,3.9709713,86.969,86.928,39.88288573]
[1773490649192,3.9709713,86.969,86.929,3.68288573]
[1773490652601,3.12392575,86.96,86.921,3.68288573]
[1773490652796,4.04565943,86.939,86.881,3.68288573]
[1773490652998,4.04565943,86.909,86.87,3.68288573]
[1773490653204,4.04565943,86.909,86.871,36.2]
[1773490654202,4.04565943,86.899,86.871,36.2]
[1773490665914,4.04565943,86.899,86.86,3.68288573]
[1773490669011,3.9372056,86.924,86.871,3.92518133]
[1773490670513,3.9372056,86.923,86.871,3.92518133]
[1773490672320,3.85964347,86.921,86.871,3.92518133]
[1773490675126,3.12392575,86.92,86.871,3.92518133]
[1773490675528,3.85964347,86.919,86.871,3.92518133]
[1773490676425,3.85964347,86.915,86.871,3.92518133]
[1773490679724,36.22,86.958,86.871,3.92518133]
[1773490679725,3.85964347,86.909,86.871,3.92518133]
[1773490683630,3.85964347,86.909,86.866,10.359]
[1773490684032,3.85964347,86.909,86.867,3.90116797]